[Event "Early-Titled-Tuesday-Blitz-March-12-2024"]
[Site "Chess.com"]
[Date "2024.03.12"]
[Round "10"]
[White "GalaxyRoman"]
[Black "viktorskliarov"]
[Result "1-0"]
[WhiteElo "2726"]
[BlackElo "2589"]
[TimeControl "180+1"]
[EndTime "9:52:34 PDT"]
[Termination "GalaxyRoman won by resignation"]

1. e4 {[%clk 0:03:00.9]} 1... c5 {[%clk 0:02:57.4]} 2. Nc3 {[%clk 0:02:59.5]}
2... Nc6 {[%clk 0:02:57]} 3. f4 {[%clk 0:02:59.6]} 3... g6 {[%clk 0:02:54.1]} 4.
Nf3 {[%clk 0:03:00.1]} 4... Bg7 {[%clk 0:02:53.4]} 5. Bb5 {[%clk 0:03:00.6]}
5... Nd4 {[%clk 0:02:53.2]} 6. O-O {[%clk 0:03:00.5]} 6... Nxb5 {[%clk
0:02:52.6]} 7. Nxb5 {[%clk 0:03:00.6]} 7... a6 {[%clk 0:02:53.2]} 8. Nc3 {[%clk
0:03:00.8]} 8... b5 {[%clk 0:02:53.6]} 9. d3 {[%clk 0:02:54.6]} 9... Bb7 {[%clk
0:02:52.1]} 10. Be3 {[%clk 0:02:53.5]} 10... d6 {[%clk 0:02:45.1]} 11. Rb1
{[%clk 0:02:49.7]} 11... e6 {[%clk 0:02:38]} 12. Ne2 {[%clk 0:02:44.9]} 12...
Ne7 {[%clk 0:02:34.7]} 13. c3 {[%clk 0:02:44.1]} 13... Rc8 {[%clk 0:02:31.4]}
14. h3 {[%clk 0:02:41.9]} 14... c4 {[%clk 0:02:25.3]} 15. Bd4 {[%clk 0:02:32.2]}
15... O-O {[%clk 0:01:46.6]} 16. Bxg7 {[%clk 0:02:21.2]} 16... Kxg7 {[%clk
0:01:46]} 17. Ng3 {[%clk 0:02:21.7]} 17... f5 {[%clk 0:01:07.7]} 18. exf5 {[%clk
0:02:15.9]} 18... Nxf5 {[%clk 0:01:05.3]} 19. Nxf5+ {[%clk 0:02:13.9]} 19...
Rxf5 {[%clk 0:01:02.9]} 20. Nd4 {[%clk 0:02:13.3]} 20... Rf6 {[%clk 0:01:01.4]}
21. dxc4 {[%clk 0:02:12.4]} 21... Rxc4 {[%clk 0:00:55.6]} 22. Qe2 {[%clk
0:02:05.4]} 22... Bd5 {[%clk 0:00:51.7]} 23. a3 {[%clk 0:01:38.2]} 23... Qd7
{[%clk 0:00:34.6]} 24. Rbd1 {[%clk 0:01:15.6]} 24... Rc8 {[%clk 0:00:32.5]} 25.
Rf2 {[%clk 0:01:09]} 25... Rcf8 {[%clk 0:00:31.5]} 26. Qe3 {[%clk 0:00:34.6]}
26... e5 {[%clk 0:00:28.4]} 27. Nf5+ {[%clk 0:00:32.7]} 27... Qxf5 {[%clk
0:00:14.1]} 28. Rxd5 {[%clk 0:00:32.5]} 28... Qb1+ {[%clk 0:00:14.7]} 29. Kh2
{[%clk 0:00:27]} 29... Rxf4 {[%clk 0:00:12.1]} 30. Rxf4 {[%clk 0:00:20.9]} 30...
exf4 {[%clk 0:00:12.5]} 31. Qd4+ {[%clk 0:00:18.3]} 31... Kg8 {[%clk 0:00:11.6]}
32. Rxd6 {[%clk 0:00:16.4]} 32... Qxb2 {[%clk 0:00:08]} 33. Rd7 {[%clk
0:00:14.2]} 33... Rf7 {[%clk 0:00:05.1]} 34. Qd5 {[%clk 0:00:14.1]} 1-0

[Event "Early-Titled-Tuesday-Blitz-March-12-2024"]
[Site "Chess.com"]
[Date "2024.03.12"]
[Round "10"]
[White "Viktoker"]
[Black "Carlos-Godoy"]
[Result "1-0"]
[WhiteElo "2499"]
[BlackElo "2079"]
[TimeControl "180+1"]
[EndTime "9:52:36 PDT"]
[Termination "Viktoker won on time"]

1. a3 {[%clk 0:02:55.1]} 1... Nf6 {[%clk 0:02:31.2]} 2. d3 {[%clk 0:02:48]} 2...
e5 {[%clk 0:02:18.3]} 3. e4 {[%clk 0:02:45.6]} 3... Bc5 {[%clk 0:02:10]} 4. Be2
{[%clk 0:02:35.9]} 4... O-O {[%clk 0:02:08.4]} 5. Nf3 {[%clk 0:02:35.1]} 5...
Nc6 {[%clk 0:02:06.8]} 6. O-O {[%clk 0:02:34.2]} 6... d5 {[%clk 0:02:07.4]} 7.
Nbd2 {[%clk 0:02:31.2]} 7... Bg4 {[%clk 0:02:03.6]} 8. exd5 {[%clk 0:02:28.2]}
8... Nxd5 {[%clk 0:02:02.5]} 9. Ne4 {[%clk 0:02:28.2]} 9... Bb6 {[%clk
0:02:00.9]} 10. c4 {[%clk 0:02:16.7]} 10... Nf4 {[%clk 0:01:47.8]} 11. c5 {[%clk
0:02:03.7]} 11... Nxe2+ {[%clk 0:01:45.5]} 12. Qxe2 {[%clk 0:02:02]} 12... Nd4
{[%clk 0:01:46]} 13. Qd1 {[%clk 0:00:45.5]} 13... f5 {[%clk 0:01:21.8]} 14. Ned2
{[%clk 0:00:19.9]} 14... Bxc5 {[%clk 0:01:17.8]} 15. b4 {[%clk 0:00:20.2]} 15...
Nxf3+ {[%clk 0:01:08.7]} 16. Nxf3 {[%clk 0:00:20.1]} 16... Bd4 {[%clk 0:01:08]}
17. Ra2 {[%clk 0:00:18.7]} 17... Qd5 {[%clk 0:00:54.9]} 18. Rd2 {[%clk
0:00:18.1]} 18... Rad8 {[%clk 0:00:55.4]} 19. h3 {[%clk 0:00:08.5]} 19... Bh5
{[%clk 0:00:54.3]} 20. Re1 {[%clk 0:00:04.8]} 20... Bc3 {[%clk 0:00:51.8]} 21.
Ree2 {[%clk 0:00:02.3]} 21... Bxd2 {[%clk 0:00:51.4]} 22. Rxd2 {[%clk
0:00:03.2]} 22... Qc6 {[%clk 0:00:40.9]} 23. Bb2 {[%clk 0:00:03]} 23... e4
{[%clk 0:00:33.3]} 24. dxe4 {[%clk 0:00:03.2]} 24... Rxd2 {[%clk 0:00:33.9]} 25.
Qxd2 {[%clk 0:00:04.1]} 25... Bxf3 {[%clk 0:00:29.3]} 26. gxf3 {[%clk
0:00:03.9]} 26... fxe4 {[%clk 0:00:30]} 27. f4 {[%clk 0:00:01.8]} 27... Qf6
{[%clk 0:00:27.4]} 28. Bxf6 {[%clk 0:00:01.1]} 1-0

[Event "Early-Titled-Tuesday-Blitz-March-12-2024"]
[Site "Chess.com"]
[Date "2024.03.12"]
[Round "10"]
[White "Oleksandr_Bortnyk"]
[Black "MatthewG-p4p"]
[Result "1-0"]
[WhiteElo "3018"]
[BlackElo "2893"]
[TimeControl "180+1"]
[EndTime "9:52:40 PDT"]
[Termination "Oleksandr_Bortnyk won by resignation"]

1. e4 {[%clk 0:03:00.6]} 1... e6 {[%clk 0:02:48.2]} 2. Nf3 {[%clk 0:02:47]} 2...
d5 {[%clk 0:02:48.5]} 3. e5 {[%clk 0:02:47.8]} 3... c5 {[%clk 0:02:48.9]} 4. d4
{[%clk 0:02:48.7]} 4... cxd4 {[%clk 0:02:46.5]} 5. Bd3 {[%clk 0:02:49.4]} 5...
Nc6 {[%clk 0:02:47.3]} 6. O-O {[%clk 0:02:50.3]} 6... Nge7 {[%clk 0:02:37.1]} 7.
Bf4 {[%clk 0:02:48.8]} 7... Qc7 {[%clk 0:02:34.4]} 8. Re1 {[%clk 0:02:48.9]}
8... f5 {[%clk 0:02:29.8]} 9. h4 {[%clk 0:02:42.3]} 9... Ng6 {[%clk 0:02:09.3]}
10. Bg3 {[%clk 0:02:41.8]} 10... Bb4 {[%clk 0:02:09.7]} 11. Nbd2 {[%clk
0:02:39.3]} 11... O-O {[%clk 0:02:09.9]} 12. h5 {[%clk 0:02:38.9]} 12... Nge7
{[%clk 0:02:09.2]} 13. a3 {[%clk 0:02:38.1]} 13... Bc5 {[%clk 0:01:59]} 14. b4
{[%clk 0:02:31.6]} 14... Bb6 {[%clk 0:01:59.4]} 15. Bf4 {[%clk 0:02:27.7]} 15...
a5 {[%clk 0:01:56.3]} 16. b5 {[%clk 0:02:27.6]} 16... Nb8 {[%clk 0:01:56.5]} 17.
Nb3 {[%clk 0:02:27.5]} 17... Nd7 {[%clk 0:01:56.8]} 18. h6 {[%clk 0:02:22.6]}
18... Ng6 {[%clk 0:01:43.2]} 19. hxg7 {[%clk 0:02:22]} 19... Rf7 {[%clk
0:01:43.4]} 20. Bh6 {[%clk 0:02:03.2]} 20... Nc5 {[%clk 0:01:29.7]} 21. Nxc5
{[%clk 0:01:52.5]} 21... Bxc5 {[%clk 0:01:30.6]} 22. Ng5 {[%clk 0:01:46.1]}
22... Rxg7 {[%clk 0:01:30.8]} 23. Bxg7 {[%clk 0:01:47]} 23... Qxg7 {[%clk
0:01:31.4]} 24. Qh5 {[%clk 0:01:47.8]} 24... Bd7 {[%clk 0:01:29.7]} 25. g3
{[%clk 0:01:37.9]} 25... Be7 {[%clk 0:01:09.9]} 26. Nf3 {[%clk 0:01:23.9]} 26...
Nf4 {[%clk 0:01:01]} 27. Qh1 {[%clk 0:01:23.9]} 27... Nxd3 {[%clk 0:00:28]} 28.
cxd3 {[%clk 0:01:24.8]} 28... Bxb5 {[%clk 0:00:28.8]} 29. Nxd4 {[%clk 0:01:10]}
29... Bd7 {[%clk 0:00:28.8]} 30. Nxf5 {[%clk 0:01:09]} 30... Qg5 {[%clk
0:00:09.2]} 31. Nxe7+ {[%clk 0:01:05.4]} 31... Qxe7 {[%clk 0:00:10.1]} 32. d4
{[%clk 0:00:58.6]} 32... Rf8 {[%clk 0:00:10.1]} 33. Qh6 {[%clk 0:00:58.3]} 33...
Bb5 {[%clk 0:00:06.8]} 34. Re3 {[%clk 0:00:57.5]} 34... Qf7 {[%clk 0:00:05.4]}
35. f4 {[%clk 0:00:49.8]} 35... Bc4 {[%clk 0:00:05.4]} 36. Rb1 {[%clk
0:00:45.9]} 36... b5 {[%clk 0:00:05.7]} 37. Rb2 {[%clk 0:00:46.4]} 37... Qa7
{[%clk 0:00:05.9]} 38. Qxe6+ {[%clk 0:00:40.6]} 38... Kh8 {[%clk 0:00:05.8]} 39.
Qh6 {[%clk 0:00:35.1]} 39... Kg8 {[%clk 0:00:05.5]} 40. Rh2 {[%clk 0:00:30.3]}
40... Rf7 {[%clk 0:00:02.9]} 41. e6 {[%clk 0:00:29.2]} 41... Re7 {[%clk
0:00:03.5]} 42. Qg5+ {[%clk 0:00:29.1]} 42... Kh8 {[%clk 0:00:03.8]} 43. Qf6+
{[%clk 0:00:27.4]} 43... Kg8 {[%clk 0:00:04.5]} 44. Rh5 {[%clk 0:00:26.7]} 1-0

[Event "Early-Titled-Tuesday-Blitz-March-12-2024"]
[Site "Chess.com"]
[Date "2024.03.12"]
[Round "10"]
[White "GilbertoHernandezAmura"]
[Black "David_George21"]
[Result "1/2-1/2"]
[WhiteElo "2447"]
[BlackElo "2308"]
[TimeControl "180+1"]
[EndTime "9:52:40 PDT"]
[Termination "Game drawn by repetition"]

1. d4 {[%clk 0:03:00.9]} 1... Nf6 {[%clk 0:02:58.9]} 2. Bg5 {[%clk 0:03:00.8]}
2... e6 {[%clk 0:02:56.7]} 3. Nd2 {[%clk 0:02:59.5]} 3... Be7 {[%clk 0:02:54.5]}
4. e3 {[%clk 0:02:59.7]} 4... d5 {[%clk 0:02:54.5]} 5. Bd3 {[%clk 0:02:59.9]}
5... Nbd7 {[%clk 0:02:54.7]} 6. h4 {[%clk 0:02:51.1]} 6... h6 {[%clk 0:02:54.3]}
7. Bf4 {[%clk 0:02:51.4]} 7... c5 {[%clk 0:02:54.6]} 8. c3 {[%clk 0:02:51.1]}
8... h5 {[%clk 0:02:45.2]} 9. Ngf3 {[%clk 0:02:41.8]} 9... Ng4 {[%clk
0:02:30.2]} 10. Ng5 {[%clk 0:02:38.1]} 10... Bxg5 {[%clk 0:01:57.3]} 11. hxg5
{[%clk 0:02:35.1]} 11... e5 {[%clk 0:01:51.6]} 12. Qxg4 {[%clk 0:02:26.5]} 12...
Nf8 {[%clk 0:01:30.5]} 13. Qg3 {[%clk 0:02:20.3]} 13... exf4 {[%clk 0:01:30.4]}
14. exf4 {[%clk 0:02:17.6]} 14... Qe7+ {[%clk 0:01:25.7]} 15. Kf1 {[%clk
0:02:17.4]} 15... g6 {[%clk 0:01:22.6]} 16. Re1 {[%clk 0:02:16.1]} 16... Ne6
{[%clk 0:01:21.8]} 17. f5 {[%clk 0:02:02.6]} 17... gxf5 {[%clk 0:01:20.5]} 18.
g6 {[%clk 0:02:01.9]} 18... Bd7 {[%clk 0:01:05.8]} 19. dxc5 {[%clk 0:01:39.1]}
19... O-O-O {[%clk 0:00:48.8]} 20. b4 {[%clk 0:01:35.6]} 20... f4 {[%clk
0:00:38.9]} 21. Qf3 {[%clk 0:01:31.3]} 21... fxg6 {[%clk 0:00:37.1]} 22. a4
{[%clk 0:01:13.8]} 22... g5 {[%clk 0:00:28.5]} 23. Bf5 {[%clk 0:01:00.4]} 23...
Qf6 {[%clk 0:00:19.3]} 24. Qxd5 {[%clk 0:00:50.4]} 24... Bb5+ {[%clk 0:00:18.7]}
25. axb5 {[%clk 0:00:48.5]} 25... Rxd5 {[%clk 0:00:19]} 26. Bxe6+ {[%clk
0:00:49.2]} 26... Qxe6 {[%clk 0:00:10.7]} 27. Rxe6 {[%clk 0:00:48.7]} 27... Rxd2
{[%clk 0:00:11.6]} 28. g3 {[%clk 0:00:36.3]} 28... f3 {[%clk 0:00:11.1]} 29. g4
{[%clk 0:00:32.4]} 29... h4 {[%clk 0:00:08.5]} 30. Rh3 {[%clk 0:00:30.7]} 30...
Rd1+ {[%clk 0:00:07.3]} 31. Re1 {[%clk 0:00:30.1]} 31... Rxe1+ {[%clk
0:00:06.9]} 32. Kxe1 {[%clk 0:00:31]} 32... Re8+ {[%clk 0:00:06]} 33. Kd2 {[%clk
0:00:31.5]} 33... Re2+ {[%clk 0:00:06]} 34. Kd3 {[%clk 0:00:31.6]} 34... Rxf2
{[%clk 0:00:06.3]} 35. Ke3 {[%clk 0:00:31.9]} 35... Rc2 {[%clk 0:00:05.7]} 36.
Kd3 {[%clk 0:00:28]} 36... Rf2 {[%clk 0:00:04]} 37. Ke3 {[%clk 0:00:27.7]} 37...
Rc2 {[%clk 0:00:03.8]} 38. Kd3 {[%clk 0:00:18.4]} 38... Rf2 {[%clk 0:00:03.6]}
1/2-1/2

[Event "Early-Titled-Tuesday-Blitz-March-12-2024"]
[Site "Chess.com"]
[Date "2024.03.12"]
[Round "10"]
[White "HATilay"]
[Black "AttilaTurzo"]
[Result "1-0"]
[WhiteElo "2680"]
[BlackElo "2470"]
[TimeControl "180+1"]
[EndTime "9:52:43 PDT"]
[Termination "HATilay won on time"]

1. e4 {[%clk 0:03:00.9]} 1... c5 {[%clk 0:02:59.8]} 2. Nf3 {[%clk 0:03:01.3]}
2... d6 {[%clk 0:03:00.4]} 3. d4 {[%clk 0:03:01.5]} 3... cxd4 {[%clk 0:03:01.3]}
4. Nxd4 {[%clk 0:03:02.3]} 4... Nf6 {[%clk 0:03:02]} 5. Nc3 {[%clk 0:03:02.9]}
5... a6 {[%clk 0:03:02.7]} 6. Be2 {[%clk 0:03:02.5]} 6... e5 {[%clk 0:03:02.4]}
7. Nb3 {[%clk 0:03:03.2]} 7... h6 {[%clk 0:03:01.6]} 8. Be3 {[%clk 0:02:59.7]}
8... Be7 {[%clk 0:02:59.2]} 9. Nd5 {[%clk 0:02:59.9]} 9... Be6 {[%clk 0:02:55]}
10. Bb6 {[%clk 0:02:59.3]} 10... Qd7 {[%clk 0:02:33.7]} 11. Nc7+ {[%clk
0:02:59.3]} 11... Kf8 {[%clk 0:02:31.5]} 12. Nxa8 {[%clk 0:02:59.7]} 12... Qc6
{[%clk 0:02:30.6]} 13. Na5 {[%clk 0:02:53]} 13... Qxe4 {[%clk 0:02:29.3]} 14.
O-O {[%clk 0:02:53.5]} 14... Nbd7 {[%clk 0:02:26.2]} 15. c3 {[%clk 0:02:29.3]}
15... g5 {[%clk 0:02:11.8]} 16. Bf3 {[%clk 0:02:29.4]} 16... Qf4 {[%clk
0:02:09.5]} 17. Be3 {[%clk 0:02:25.7]} 17... Qf5 {[%clk 0:02:04.7]} 18. Nc7
{[%clk 0:02:26.2]} 18... e4 {[%clk 0:02:04]} 19. Nxe6+ {[%clk 0:02:25.9]} 19...
fxe6 {[%clk 0:02:03.1]} 20. Be2 {[%clk 0:02:25.1]} 20... Qxa5 {[%clk 0:02:02.9]}
21. Qb3 {[%clk 0:02:16.2]} 21... Kf7 {[%clk 0:01:51.3]} 22. Qxb7 {[%clk
0:02:15.6]} 22... Rb8 {[%clk 0:01:49.1]} 23. Qxa6 {[%clk 0:02:16]} 23... Qf5
{[%clk 0:01:44.3]} 24. b4 {[%clk 0:02:06.2]} 24... g4 {[%clk 0:01:44.2]} 25. Qa5
{[%clk 0:02:01.4]} 25... Ne5 {[%clk 0:01:35.3]} 26. Bd4 {[%clk 0:02:01.8]} 26...
d5 {[%clk 0:00:56.2]} 27. Qc7 {[%clk 0:01:54.8]} 27... Nf3+ {[%clk 0:00:33]} 28.
Bxf3 {[%clk 0:01:50.6]} 28... gxf3 {[%clk 0:00:30.9]} 29. Qxb8 {[%clk
0:01:50.7]} 29... Nh5 {[%clk 0:00:23.8]} 30. h3 {[%clk 0:01:17.2]} 30... Nf4
{[%clk 0:00:21.6]} 31. Qe5 {[%clk 0:01:12.3]} 31... Ne2+ {[%clk 0:00:14.2]} 32.
Kh2 {[%clk 0:01:11.2]} 32... Qg6 {[%clk 0:00:12.9]} 33. Qg7+ {[%clk 0:01:10.9]}
33... Qxg7 {[%clk 0:00:12.4]} 34. Bxg7 {[%clk 0:01:11.5]} 34... Kxg7 {[%clk
0:00:12.5]} 35. g3 {[%clk 0:01:10]} 35... Nxc3 {[%clk 0:00:11.2]} 36. a4 {[%clk
0:01:07.5]} 36... Bxb4 {[%clk 0:00:10.2]} 37. a5 {[%clk 0:01:08.2]} 37... d4
{[%clk 0:00:08.5]} 38. a6 {[%clk 0:01:08.1]} 38... Bc5 {[%clk 0:00:08]} 39. a7
{[%clk 0:01:08.1]} 39... Bxa7 {[%clk 0:00:08.3]} 40. Rxa7+ {[%clk 0:01:09]}
40... Kf6 {[%clk 0:00:05.9]} 41. Rc1 {[%clk 0:01:05.5]} 41... Ne2 {[%clk
0:00:04.7]} 42. Rc5 {[%clk 0:01:01.5]} 42... e3 {[%clk 0:00:04.1]} 43. fxe3
{[%clk 0:00:53.4]} 43... f2 {[%clk 0:00:02.6]} 44. Ra1 {[%clk 0:00:50.3]} 44...
dxe3 {[%clk 0:00:02.4]} 45. Kg2 {[%clk 0:00:44.3]} 45... Nd4 {[%clk 0:00:01.2]}
46. Rc3 {[%clk 0:00:40.7]} 1-0

[Event "Early-Titled-Tuesday-Blitz-March-12-2024"]
[Site "Chess.com"]
[Date "2024.03.12"]
[Round "10"]
[White "Yan_Dyomin2010"]
[Black "AlexeiShirov"]
[Result "1-0"]
[WhiteElo "2745"]
[BlackElo "2868"]
[TimeControl "180+1"]
[EndTime "9:52:44 PDT"]
[Termination "Yan_Dyomin2010 won by resignation"]

1. e4 {[%clk 0:03:00.9]} 1... e5 {[%clk 0:02:59.7]} 2. Nc3 {[%clk 0:03:00.2]}
2... Nf6 {[%clk 0:02:58.8]} 3. d4 {[%clk 0:03:00.4]} 3... exd4 {[%clk
0:02:57.9]} 4. Qxd4 {[%clk 0:03:01.3]} 4... Nc6 {[%clk 0:02:57.4]} 5. Qd3 {[%clk
0:03:01.5]} 5... Nb4 {[%clk 0:02:39.9]} 6. Qe2 {[%clk 0:02:44.1]} 6... d5 {[%clk
0:02:39]} 7. a3 {[%clk 0:02:42.2]} 7... d4 {[%clk 0:02:28.2]} 8. Nb5 {[%clk
0:02:25.2]} 8... Nc6 {[%clk 0:02:22.2]} 9. Bf4 {[%clk 0:02:24.8]} 9... Bd6
{[%clk 0:02:13.8]} 10. Bxd6 {[%clk 0:01:50.3]} 10... cxd6 {[%clk 0:02:14]} 11.
O-O-O {[%clk 0:01:50.9]} 11... Qb6 {[%clk 0:02:13.3]} 12. Nxd6+ {[%clk
0:01:50.5]} 12... Kf8 {[%clk 0:02:12]} 13. e5 {[%clk 0:01:50.5]} 13... Nd5
{[%clk 0:02:03]} 14. Qf3 {[%clk 0:01:45.9]} 14... Be6 {[%clk 0:02:01.8]} 15. Qg3
{[%clk 0:01:07.3]} 15... Rd8 {[%clk 0:01:33.9]} 16. Bc4 {[%clk 0:01:04.6]} 16...
Qc5 {[%clk 0:01:27.2]} 17. Bxd5 {[%clk 0:00:44.2]} 17... Qxd5 {[%clk 0:01:25.6]}
18. Nf3 {[%clk 0:00:20.4]} 18... Qa2 {[%clk 0:01:24.7]} 19. Ng5 {[%clk
0:00:20.4]} 19... Bd5 {[%clk 0:01:12.1]} 20. e6 {[%clk 0:00:18.4]} 20... Qa1+
{[%clk 0:01:02]} 21. Kd2 {[%clk 0:00:18.2]} 21... Qxb2 {[%clk 0:01:01.4]} 22.
Ngxf7 {[%clk 0:00:18.3]} 22... Ke7 {[%clk 0:00:18.9]} 23. Nxd8 {[%clk
0:00:17.4]} 23... Rxd8 {[%clk 0:00:17.1]} 24. Nf5+ {[%clk 0:00:17.8]} 24... Kxe6
{[%clk 0:00:15.2]} 25. Nxg7+ {[%clk 0:00:13.5]} 25... Kf7 {[%clk 0:00:14.5]} 26.
Nf5 {[%clk 0:00:13.5]} 26... Be4 {[%clk 0:00:14.4]} 27. Nh6+ {[%clk 0:00:11.4]}
27... Ke7 {[%clk 0:00:13.4]} 28. Qh4+ {[%clk 0:00:10.8]} 28... Kd6 {[%clk
0:00:12]} 29. Qxe4 {[%clk 0:00:11.4]} 29... Qc3+ {[%clk 0:00:11.2]} 30. Ke2
{[%clk 0:00:12.1]} 30... Rf8 {[%clk 0:00:09.8]} 31. Nf5+ {[%clk 0:00:11.8]}
31... Kc7 {[%clk 0:00:09.3]} 32. Nxd4 {[%clk 0:00:11.6]} 32... Qc4+ {[%clk
0:00:08.1]} 33. Ke1 {[%clk 0:00:10.6]} 33... Qc3+ {[%clk 0:00:07.9]} 34. Kf1
{[%clk 0:00:10.1]} 34... Nxd4 {[%clk 0:00:06.3]} 35. Qxd4 {[%clk 0:00:11]} 35...
Qxc2 {[%clk 0:00:05.8]} 36. h4 {[%clk 0:00:11.1]} 36... Kb8 {[%clk 0:00:04.5]}
37. Kg1 {[%clk 0:00:10.9]} 1-0

[Event "Early-Titled-Tuesday-Blitz-March-12-2024"]
[Site "Chess.com"]
[Date "2024.03.12"]
[Round "10"]
[White "Roman_Ovetchkin"]
[Black "Chessdude1987"]
[Result "0-1"]
[WhiteElo "2578"]
[BlackElo "2433"]
[TimeControl "180+1"]
[EndTime "9:52:47 PDT"]
[Termination "Chessdude1987 won by resignation"]

1. d4 {[%clk 0:02:59.2]} 1... e6 {[%clk 0:02:25.7]} 2. e4 {[%clk 0:02:57.5]}
2... d5 {[%clk 0:02:25.5]} 3. Nc3 {[%clk 0:02:57]} 3... Nf6 {[%clk 0:02:25.2]}
4. Bg5 {[%clk 0:02:55.5]} 4... h6 {[%clk 0:02:23.6]} 5. Bxf6 {[%clk 0:02:53.2]}
5... Qxf6 {[%clk 0:02:24.5]} 6. Nf3 {[%clk 0:02:42.9]} 6... Bb4 {[%clk
0:02:21.7]} 7. Bd3 {[%clk 0:02:40.6]} 7... O-O {[%clk 0:02:19.1]} 8. O-O {[%clk
0:02:37.8]} 8... c6 {[%clk 0:02:17.6]} 9. e5 {[%clk 0:02:29.4]} 9... Qe7 {[%clk
0:02:16.3]} 10. Ne2 {[%clk 0:02:30]} 10... c5 {[%clk 0:02:13.9]} 11. c3 {[%clk
0:02:29.5]} 11... c4 {[%clk 0:02:06.3]} 12. Bc2 {[%clk 0:02:28.6]} 12... Ba5
{[%clk 0:02:06.3]} 13. Nf4 {[%clk 0:02:28.7]} 13... Bd7 {[%clk 0:02:02.4]} 14.
h4 {[%clk 0:02:27.7]} 14... Be8 {[%clk 0:02:02.2]} 15. Re1 {[%clk 0:02:26.3]}
15... Nd7 {[%clk 0:02:01.8]} 16. g3 {[%clk 0:02:25.8]} 16... Bc7 {[%clk
0:01:57.9]} 17. Qe2 {[%clk 0:02:03.9]} 17... b5 {[%clk 0:01:32.3]} 18. a3 {[%clk
0:02:00.1]} 18... a5 {[%clk 0:01:31.9]} 19. Nh2 {[%clk 0:01:50.6]} 19... Ra6
{[%clk 0:01:25.9]} 20. Ng4 {[%clk 0:01:43.2]} 20... Qd8 {[%clk 0:01:21.8]} 21.
Nh5 {[%clk 0:01:37.8]} 21... f5 {[%clk 0:01:14.3]} 22. Nh2 {[%clk 0:01:06.1]}
22... Bxh5 {[%clk 0:01:01.5]} 23. Qxh5 {[%clk 0:01:05.2]} 23... Qe8 {[%clk
0:01:01.8]} 24. Qe2 {[%clk 0:01:01.1]} 24... Qf7 {[%clk 0:01:00.1]} 25. Kg2
{[%clk 0:00:59.9]} 25... Raa8 {[%clk 0:00:55.6]} 26. h5 {[%clk 0:00:59.8]} 26...
b4 {[%clk 0:00:51.7]} 27. f4 {[%clk 0:00:50.2]} 27... bxc3 {[%clk 0:00:48.4]}
28. bxc3 {[%clk 0:00:49.2]} 28... Rfb8 {[%clk 0:00:46.2]} 29. Reb1 {[%clk
0:00:30.3]} 29... Nf8 {[%clk 0:00:43]} 30. g4 {[%clk 0:00:27.9]} 30... fxg4
{[%clk 0:00:40.9]} 31. Qxg4 {[%clk 0:00:28]} 31... Rxb1 {[%clk 0:00:32.1]} 32.
Rxb1 {[%clk 0:00:27.3]} 32... Rb8 {[%clk 0:00:32.2]} 33. Rxb8 {[%clk 0:00:27.1]}
33... Bxb8 {[%clk 0:00:32.3]} 34. f5 {[%clk 0:00:24.2]} 34... exf5 {[%clk
0:00:28]} 35. Qxf5 {[%clk 0:00:22.7]} 35... Qxf5 {[%clk 0:00:23.5]} 36. Bxf5
{[%clk 0:00:21.9]} 36... Kf7 {[%clk 0:00:23.6]} 37. Ng4 {[%clk 0:00:20.3]} 37...
Ne6 {[%clk 0:00:20.6]} 38. Ne3 {[%clk 0:00:18.4]} 38... Nc7 {[%clk 0:00:16.4]}
39. a4 {[%clk 0:00:18.5]} 39... Ba7 {[%clk 0:00:13.9]} 40. Kf3 {[%clk
0:00:18.2]} 40... Bb6 {[%clk 0:00:13.1]} 41. Be6+ {[%clk 0:00:18]} 41... Kxe6
{[%clk 0:00:12.7]} 42. Kf4 {[%clk 0:00:16.7]} 42... Ne8 {[%clk 0:00:11.6]} 0-1

[Event "Early-Titled-Tuesday-Blitz-March-12-2024"]
[Site "Chess.com"]
[Date "2024.03.12"]
[Round "10"]
[White "CarlosjPineror"]
[Black "SuperPower2011"]
[Result "0-1"]
[WhiteElo "2620"]
[BlackElo "2800"]
[TimeControl "180+1"]
[EndTime "9:52:52 PDT"]
[Termination "SuperPower2011 won by resignation"]

1. e4 {[%clk 0:03:00.9]} 1... c5 {[%clk 0:02:59.6]} 2. Nf3 {[%clk 0:03:00.9]}
2... d6 {[%clk 0:03:00]} 3. d4 {[%clk 0:03:01]} 3... cxd4 {[%clk 0:03:00.9]} 4.
Nxd4 {[%clk 0:03:01.6]} 4... Nf6 {[%clk 0:03:01.3]} 5. Nc3 {[%clk 0:03:02.3]}
5... a6 {[%clk 0:03:01.8]} 6. Bg5 {[%clk 0:03:02.9]} 6... Nbd7 {[%clk
0:03:01.8]} 7. f4 {[%clk 0:03:02.8]} 7... Qc7 {[%clk 0:02:49.1]} 8. Qe2 {[%clk
0:03:02.5]} 8... e5 {[%clk 0:02:21.6]} 9. fxe5 {[%clk 0:03:00.7]} 9... dxe5
{[%clk 0:02:20.7]} 10. Nf5 {[%clk 0:03:01.3]} 10... h6 {[%clk 0:02:20.1]} 11.
Bd2 {[%clk 0:02:40.2]} 11... Nc5 {[%clk 0:02:16]} 12. O-O-O {[%clk 0:02:35.8]}
12... Ncxe4 {[%clk 0:01:54.8]} 13. Nxg7+ {[%clk 0:02:24.5]} 13... Bxg7 {[%clk
0:01:55.7]} 14. Nxe4 {[%clk 0:02:24.9]} 14... Nxe4 {[%clk 0:01:55.4]} 15. Qxe4
{[%clk 0:02:25.8]} 15... Be6 {[%clk 0:01:55.8]} 16. Bb4 {[%clk 0:01:59.5]} 16...
Rc8 {[%clk 0:01:50.1]} 17. Bd3 {[%clk 0:01:50.4]} 17... Qb6 {[%clk 0:01:46.8]}
18. g4 {[%clk 0:01:39.6]} 18... Bxa2 {[%clk 0:01:35.6]} 19. Rhf1 {[%clk
0:01:25.7]} 19... Be6 {[%clk 0:01:34.5]} 20. Kb1 {[%clk 0:01:15.6]} 20... Rd8
{[%clk 0:01:17.9]} 21. Bc3 {[%clk 0:01:02.4]} 21... Qc5 {[%clk 0:01:08.5]} 22.
Rde1 {[%clk 0:01:00]} 22... Rxd3 {[%clk 0:00:27.6]} 23. Qxd3 {[%clk 0:00:53.2]}
23... Bc4 {[%clk 0:00:25.9]} 24. Qf5 {[%clk 0:00:49.1]} 24... Bxf1 {[%clk
0:00:24.8]} 25. Bxe5 {[%clk 0:00:47.7]} 25... O-O {[%clk 0:00:20]} 26. Bxg7
{[%clk 0:00:33.4]} 26... Qxf5 {[%clk 0:00:20.6]} 27. gxf5 {[%clk 0:00:32.3]}
27... Kxg7 {[%clk 0:00:21.3]} 28. Rxf1 {[%clk 0:00:32.2]} 28... Kf6 {[%clk
0:00:21.7]} 29. c4 {[%clk 0:00:31]} 29... Re8 {[%clk 0:00:21.7]} 30. Kc2 {[%clk
0:00:30.6]} 30... Re2+ {[%clk 0:00:21.7]} 31. Kc3 {[%clk 0:00:31.2]} 31... Rxh2
{[%clk 0:00:22.6]} 32. b4 {[%clk 0:00:30.7]} 32... Rh5 {[%clk 0:00:22.9]} 33.
Rd1 {[%clk 0:00:29.2]} 33... Rh3+ {[%clk 0:00:19.2]} 34. Kd4 {[%clk 0:00:28.2]}
34... Kxf5 {[%clk 0:00:18.6]} 35. Kc5 {[%clk 0:00:27.7]} 35... Ke6 {[%clk
0:00:13.4]} 36. Re1+ {[%clk 0:00:25.3]} 36... Kd7 {[%clk 0:00:13.5]} 37. Rf1
{[%clk 0:00:26]} 37... Rh5+ {[%clk 0:00:13]} 38. Kd4 {[%clk 0:00:25.7]} 38...
Ke6 {[%clk 0:00:11.9]} 39. Re1+ {[%clk 0:00:23.9]} 39... Kf6 {[%clk 0:00:12.6]}
40. Rf1+ {[%clk 0:00:23.3]} 40... Rf5 {[%clk 0:00:13.2]} 41. Re1 {[%clk
0:00:21.7]} 41... h5 {[%clk 0:00:14.1]} 42. c5 {[%clk 0:00:21.1]} 42... h4
{[%clk 0:00:14.3]} 43. Re4 {[%clk 0:00:20.2]} 43... Kg5 {[%clk 0:00:12.9]} 44.
Re7 {[%clk 0:00:19.8]} 44... h3 {[%clk 0:00:13.5]} 45. Rxb7 {[%clk 0:00:11.2]}
45... h2 {[%clk 0:00:13.6]} 0-1